Cogmind - Beta 13 @@@ ROGUE MODE // 2024.03.06 @ 21:58:39 Player: Baxter Result: Destroyed by XE-JBR(R) with Subdweller Machine Gun Performance ------------- Evolutions (0) 0 Regions Visited (2) 400 Robots Destroyed (23) 115 Value Destroyed (569) 569 Prototype IDs (2) 40 Alien Tech Used (0) 0 Bonus (0) 0 TOTAL SCORE: 1124 Bonus ------- None Cogmind --------- Core Integrity 0/250 Matter 220/300 Energy 250/250 System Corruption 0% Temperature Cool (0) Movement Treading (320) Ox2 Location -10/Subcaves Parts ------- > --- POWER (1) -------- Ion Engine > --- PROPULSION (2) --- Light Treads Subdweller Monowheel > --- UTILITY (2) ------ High-capacity Storage Unit Makeshift Light Armor Plating > --- WEAPON (2) ------- Battle Rifle Subdweller Machine Gun > --- INVENTORY (20) --- Light Ion Engine Light Ion Engine Light Ion Engine Subdweller Power Source Wheel Medium Storage Unit High-capacity Matter Pod (200) Subdweller Optics Light Armor Plating Makeshift Light Armor Plating Subdweller Beam Cannon Light Assault Rifle Grenade Launcher Subdweller Shrapnel Launcher Hammer Piercing Trap Peak State ------------ > --- POWER ------------ Ion Engine > --- PROPULSION ------- Wheel Subdweller Monowheel > --- UTILITY ---------- High-capacity Storage Unit Makeshift Light Armor Plating > --- WEAPON ----------- Battle Rifle Subdweller Machine Gun > --- INVENTORY -------- Light Ion Engine Light Ion Engine Light Ion Engine Subdweller Power Source Light Treads Light Treads Medium Storage Unit High-capacity Matter Pod Subdweller Optics Light Armor Plating Makeshift Light Armor Plating Subdweller Beam Cannon Light Assault Rifle Grenade Launcher Subdweller Shrapnel Launcher Hammer Piercing Trap [Rating: 15] Favorites ----------- Power Ion Engine Engine Ion Engine Propulsion Wheel Treads Light Treads Wheel Wheel Utility Signal Interpreter Storage High-capacity Storage Unit Processor Signal Interpreter Protection Makeshift Light Armor Plating Weapon EM Pulse Gun Energy Gun EM Pulse Gun Ballistic Gun Assault Rifle Launcher Grenade Launcher Impact Weapon Hammer Build | -11 -10 -10 ------- Run | Yrd Mat Sub Slots Evolved . | . . . Power . | . . . Propulsion . | . . . Utility . | . . . Weapon . | . . . Parts Attached 50 | 6 15 29 Power 2 | 1 1 . Engine 2 | 1 1 . Core . | . . . Reactor . | . . . Propulsion 12 | 2 2 8 Treads 6 | 1 1 4 Leg . | . . . Wheel 6 | 1 1 4 Hover . | . . . Flight . | . . . Utility 5 | 1 3 1 Device . | . . . Storage 3 | 1 2 . Processor 1 | . 1 . Hackware . | . . . Protection 1 | . . 1 Artifact . | . . . Weapon 31 | 2 9 20 Energy Gun 6 | 1 3 2 Energy Cannon . | . . . Ballistic Gun 15 | 1 2 12 Ballistic Cannon . | . . . Launcher 1 | . 1 . Special Weapon . | . . . Impact Weapon 9 | . 3 6 Slashing Weapon . | . . . Piercing Weapon . | . . . Special Melee Weapon . | . . . Unidentified Prototypes . | . . . Parts Lost 8 | . 2 6 Power . | . . . Propulsion 2 | . . 2 Utility . | . . . Weapon 6 | . 2 4 Highest Loss Streak 2 | . 1 2 To Critical Strikes . | . . . Average Slot Usage (%) 97 | . 95 99 Engine 14 | . 14 14 Treads 8 | . 14 4 Wheel 19 | . 14 23 Storage 15 | . 18 14 Processor 9 | . 6 12 Energy Gun 9 | . 13 6 Ballistic Gun 10 | . 6 14 Impact Weapon 6 | . 4 7 Naked Turns . | . . . Heaviest Build 55 | 13 49 55 Greatest Support 30 | 20 20 30 Greatest Overweight (x) 5 | . 4 5 Average Overweight (x) 1 | . 1 2 Largest Inventory Capacity 20 | 8 20 20 Average Capacity 15 | 6 11 20 Most Carried 19 | 6 13 19 Average Carried 12 | 3 9 16 Final Capacity 20 | 8 20 20 Final Carried 16 | 6 12 16 Class Distribution -------------------- 67% | Mutant 32% | Scavenger-Mutant Dominant Class ---------------- Mutant | -10/Materials Mutant | -10/Subcaves Resources | -11 -10 -10 ----------- Run | Yrd Mat Sub Matter Collected 1034 | 261 441 332 Remotely . | . . . Salvage Created 713 | 54 391 268 Parts 48 | . 33 15 Haulers Intercepted 1 | . 1 . Recyclers Shooed . | . . . Parts Field Recycled . | . . . Retrieved Matter . | . . . Parts Self-Destructed 12 | . . 12 Prevented . | . . . Kills | -11 -10 -10 ------- Run | Yrd Mat Sub Combat Hostiles Destroyed 18 | . 12 6 Melee 2 | . . 2 Guns 12 | . 9 3 AOE 3 | . 3 . Classes Destroyed 8 | 1 6 1 Worker 1 | . 1 . Hauler 1 | . 1 . Recycler 1 | 1 . . Operator 1 | . 1 . Watcher 1 | . 1 . Swarmer 6 | . 6 . Grunt 8 | . 6 2 Subdweller 4 | . . 4 Best Kill Streak 6 | 1 6 1 Combat Bots Only 4 | . 4 1 Max Kills in Single Turn 2 | 1 2 1 Gunslinging . | . . . Exploded 2 | . 2 . Melee 1 | . . 1 Uniques/NPCs Destroyed . | . . . Combat | -11 -10 -10 -------- Run | Yrd Mat Sub Hostile Shots Fired 118 | . 64 54 Missed 24 | . 10 14 Damage Taken 1415 | 27 570 818 Core 260 | . 126 134 Absorbed by Shields . | . . . Core Remaining (%) 100 | 100 . . Volleys Fired 65 | 1 43 21 Largest 2 | 2 2 2 Hottest 85 | 60 80 85 Shots Fired 119 | 2 79 38 Gun 116 | 2 76 38 Cannon . | . . . Launcher 3 | . 3 . Special . | . . . Kinetic 77 | 1 45 31 Thermal . | . . . Explosive 3 | . 3 . Electromagnetic 39 | 1 31 7 Robot Hit Streak 14 | 2 10 14 Robot Miss Streak 4 | . 4 2 Penetration Max . | . . . Secondary Targets 1 | . 1 . Max Gunslinging Chain 1 | . 1 . Shots Hit Robots 97 | 2 50 45 Core Hits 36 | 3 23 10 Critical Kills 2 | . . 2 Critical Parts Destroyed 2 | . . 2 Critical Strikes 5 | . 1 4 Corrupt 1 | . 1 . Smash 4 | . . 4 Melee Attacks 37 | . 7 30 Impact 37 | . 7 30 Slashing . | . . . Piercing . | . . . Sneak Attacks 1 | . . 1 Combat Hostiles 1 | . . 1 Follow-up Attacks . | . . . Damage Inflicted 1909 | 42 911 956 Guns 1225 | 21 617 587 Cannons . | . . . Explosions 324 | 21 241 62 Melee 360 | . 53 307 Ramming . | . . . Kinetic 889 | 9 426 454 Thermal 130 | 21 47 62 Explosive 194 | . 194 . Electromagnetic 336 | 12 191 133 Impact 360 | . 53 307 Slashing . | . . . Piercing . | . . . Highest Corruption . | . . . Average Corruption . | . . . Corruption Purged . | . . . Corruption Blocked . | . . . Overload Shots . | . . . Overflow Damage 76 | . 16 60 Projectiles . | . . . Explosions 21 | . 16 5 Melee 55 | . . 55 Knockbacks . | . . . Impact . | . . . Kinetic . | . . . Secondary . | . . . Self-Inflicted Damage 80 | 27 16 37 Shots 3 | 1 1 1 Rammed . | . . . Targets Rammed . | . . . Kicked . | . . . Crushed . | . . . Highest Temperature 132 | 32 132 25 Average Temperature 39 | 22 47 6 Received Heat Transfer 381 | . 219 162 Siege Activations . | . . . Robots Corrupted . | . . . Combat Hostiles . | . . . Parts Fried 1 | . 1 . Impact Corruptions 2 | . . 2 Robots Melted . | . . . Combat Hostiles . | . . . Parts Melted . | . . . Heat Transferred 150 | 50 50 50 Parts Sabotaged . | . . . Parts Stolen . | . . . Parts Stripped . | . . . Power Chain Reactions 3 | 1 1 1 Alert | -11 -10 -10 ------- Run | Yrd Mat Sub Peak Influence 278 | 5 278 . Initial 3 | . 3 . Average 78 | 1 84 . Maximum Alert Level 1 | . 1 . Low Security (%) 93 | 100 93 . Level 1 6 | . 6 . Level 2 . | . . . Level 3 . | . . . Level 4 . | . . . Level 5 . | . . . High Security . | . . . Max Security . | . . . Squads Dispatched 1 | . 1 . Investigation 1 | . 1 . Extermination . | . . . Reinforcement . | . . . Assault . | . . . Garrison . | . . . Intercept . | . . . Searches Triggered . | . . . Construction Impeded . | . . . Haulers Reinforced . | . . . Active Scanning Responses . | . . . Cargo Convoy Interrupts . | . . . Stealth | -11 -10 -10 --------- Run | Yrd Mat Sub Distress Signals 1 | . 1 . Communications Jammed . | . . . Distress Signals . | . . . Times Spotted 29 | . 20 9 Peak Tracking Total 4 | . 4 2 Tactical Retreats 1 | . . 1 Traps | -11 -10 -10 ------- Run | Yrd Mat Sub Traps Triggered 1 | . 1 . Indirectly . | . . . Trap Hack Attempts . | . . . Triggered . | . . . Disarmed . | . . . Reprogrammed . | . . . Reused . | . . . Traps Extracted . | . . . Installed . | . . . Triggered . | . . . Most Traps Carried 1 | . . 1 Machines | -11 -10 -10 ---------- Run | Yrd Mat Sub Machines Disabled 1 | . 1 . Max in Single Turn 1 | . 1 . Machines Repaired . | . . . Machines Dismantled . | . . . Machines Sabotaged . | . . . Overloaded Fab Kills . | . . . Hacking | -11 -10 -10 --------- Run | Yrd Mat Sub Machines Accessed 7 | . 7 . Terminals 7 | . 7 . Fabricators . | . . . Repair Stations . | . . . Recycling Units . | . . . Scanalyzers . | . . . Garrison Access . | . . . Total Hacks 21 | . 21 . Successful 13 | . 13 . Failed 8 | . 8 . Catastrophic . | . . . Database Lockouts . | . . . Manual 21 | . 21 . Terminals 21 | . 21 . Fabricators . | . . . Repair Stations . | . . . Recycling Units . | . . . Scanalyzers . | . . . Garrison Access . | . . . Terminal Hacks 5 | . 5 . Robot Analysis 1 | . 1 . Prototype ID Bank 1 | . 1 . Alert Level 1 | . 1 . Unreport Threat 1 | . 1 . Recall Investigation 1 | . 1 . Fabricator Hacks . | . . . Repair Station Hacks . | . . . Recycling Unit Hacks . | . . . Scanalyzer . | . . . Garrison Access Hacks . | . . . Unauthorized Hacks 8 | . 8 . Terminals 8 | . 8 . Botnet 7 | . 7 . Operators 1 | . 1 . Fabricators . | . . . Repair Stations . | . . . Recycling Units . | . . . Scanalyzers . | . . . Garrison Access . | . . . Data Cores Recovered 1 | . 1 . Used 1 | . 1 . Hacking Detections 6 | . 6 . Full Trace Events 2 | . 2 . Feedback Events . | . . . Feedback Blocked . | . . . Robot Schematics Acquired . | . . . Robots Built . | . . . Authchips . | . . . Time . | . . . Total Robot Build Rating . | . . . Part Schematics Acquired . | . . . Parts Built . | . . . Authchips . | . . . Time . | . . . Total Part Build Rating . | . . . Parts Repaired . | . . . Time . | . . . Parts Recycled . | . . . Recycled Matter . | . . . Retrieved Matter . | . . . Retrieved Components . | . . . Parts Scanalyzed . | . . . Part Schematics Acquired . | . . . Parts Damaged . | . . . Bothacking | -11 -10 -10 ------------ Run | Yrd Mat Sub Used RIF Installer . | . . . Robots Hacked . | . . . Non-combat . | . . . Combat . | . . . Robot Hacks Applied . | . . . Relay Couplers Released . | . . . Fabnet Peak Effective % . | . . . Robots Rewired . | . . . Allies Hacked . | . . . Hacks Repelled . | . . . Allies | -11 -10 -10 -------- Run | Yrd Mat Sub Total Allies . | . . . Largest Group . | . . . Highest-Rated Group . | . . . Highest-Rated Ally . | . . . Total Orders . | . . . Ally Attacks . | . . . Total Damage . | . . . Kills . | . . . Allies Corrupted . | . . . Allies Melted . | . . . Intel | -11 -10 -10 ------- Run | Yrd Mat Sub Robot Analysis Total 1 | . 1 . Derelict Logs Recovered . | . . . Drone Launches . | . . . Drone Recoveries . | . . . Exploration | -11 -10 -10 ------------- Run | Yrd Mat Sub Turns Passed 1974 | 66 907 1001 Spaces Moved 1300 | 48 600 652 Core 4 | 4 . . Treads 6 | 5 1 . Legs . | . . . Wheels 1290 | 39 599 652 Hover . | . . . Flight . | . . . Fastest Speed 50 | 50 100 107 Average Speed 114 | 102 114 115 Slowest Speed 320 | 160 320 155 Overloaded Moves . | . . . Propulsion Burnouts . | . . . Robots Hopped . | . . . Cave-ins Triggered . | . . . Exploration Rate (%) 45 | 4 93 38 Regions Visited 2 Branch Regions 1 Pre-discovered Areas . | . . . Known Exits Taken 1 | . 1 . Unknown Exits Taken 1 | 1 . . Scrap Searched 3 | . . 3 Spaces Dug 3 | . 2 1 Terrain Destroyed 38 | 6 30 2 Melee 3 | . 2 1 Projectile . | . . . AOE 35 | 6 28 1 Terrain Rammed . | . . . Walls Destroyed . | . . . Machines Disabled . | . . . Actions | -11 -10 -10 --------- Run | Yrd Mat Sub Total 1592 | 60 731 801 Wait 103 | . 50 53 Move 1298 | 47 599 652 Hop . | . . . Pick Up 29 | 6 10 13 Fast Attach 8 | 6 2 . Attach 8 | . 2 6 Detach . | . . . Swap 34 | . 11 23 Drop 10 | . 7 3 Fire 65 | 1 43 21 Melee 37 | . 7 30 Ram . | . . . Kick . | . . . Crush . | . . . Escape Stasis . | . . . Rewire . | . . . Trap . | . . . Miscellaneous . | . . . Route ------- -11/Scrapyard -10/Materials (discovered 5 exits: *Mat x3 / [*Min] / *Sub) -10/Subcaves History --------- Turn | Location | Event 8 | -11/Scrapyard | Discovered new exit (range 15) 67 | -11/Scrapyard | Entered Materials 325 | -10/Materials | Build established: Mutant 420 | -10/Materials | Discovered new exit (range 13) 588 | -10/Materials | Discovered new exit (range 7) 693 | -10/Materials | Discovered new exit (range 4) 841 | -10/Materials | Discovered new exit (range 2) 844 | -10/Materials | Core integrity fell below 50% 913 | -10/Materials | Discovered new exit (range 12) 933 | -10/Materials | Identified exit to Materials 973 | -10/Materials | Identified exit to Subcaves 974 | -10/Materials | Entered Subcaves 977 | -10/Subcaves | Shifting Twisted Machinery released Hvy. Riot Gun 983 | -10/Subcaves | Shifting Twisted Machinery released Mak. Light Armor Plating 1078 | -10/Subcaves | Build established: Scavenger-Mutant 1372 | -10/Subcaves | Shifting Twisted Machinery released Piercing Trap 1374 | -10/Subcaves | Shifting Twisted Machinery released Sub. Laser 1522 | -10/Subcaves | Build established: Mutant 1728 | -10/Subcaves | A swath of the cavern ceiling suddenly collapsed 1863 | -10/Subcaves | Disturbed a concealed Subdweller 1868 | -10/Subcaves | Core integrity fell below 20% 1975 | -10/Subcaves | Destroyed by XE-JBR(R) with Subdweller Machine Gun Last Messages --------------- 01863_ 21-68I(R) angrily emerges from the Twisted Machinery. 01871_ 21-68I(R) suffers critical hit (Smash). 01871_ Destroyed Disposable Heat Sink. 01871_ 21-68I(R) system corrupted by crushing effect. 01874_ 21-68I(R) suffers critical hit (Smash). 01874_ 21-68I(R) destroyed. 01875_ Acquired 20 matter. 01880_ Searching scrap... 01880_ Found Sub. Beam Cannon. 01880_ Found Battle Rifle. 01880_ Found 24 Matter. 01881_ Searching scrap... 01881_ Found Mak. System Restoration Module. 01881_ Found 15 Matter. 01884_ Acquired Battle Rifle. 01887_ Acquired Sub. Beam Cannon. 01899_ Discarded Signal Interpreter. 01970_ Lgt. Treads destroyed. Map ----- +----------------------------------------------------+ | ?????????????????????????????????????????????????? | | ?????????????????????????????????????????????????? | | ?????????????????????????????????????????????##### | | ?????????????????????????????????????????????#& ! | | ?????????????????????????????????????????????#*##% | | ?????????????????????????????????????????????#%&## | | ?????????????????????????????????????????????##!"# | | ?????????????????????????????????????????????##[## | | ?????????????????????????????????????????????#" " | | ?????????????????????????????????????????????# | | ??????????????????????????????????????????#### | | ??????????????????????????????????????????# | | ??????????????????????????????????????????## | | ???????????????????????????????????????????# | | ???????????????????????????????????????????# | | ?????????????????##???????????????????????## | | ?????????????????# ??????????????????????# | | ?????????????????# ??????####??????######## # | | ?????????????????# ????## #???#### ### ## | | ?????????????????# ????# ##?## # # # | | ?????????????????? ???# ### | | ???????????????????# ???# ## ## | | ???????????????????# ??# ### ##### | | ???????????????????## #### #?## #???# | | ???????????????????# #### ### #??### ##???? | | ???????????????????# R@####### #????## #####?? | | ???????????????????## R ##### ##??####### ### | | ????????????????????# ## ##?## ### # | | ????????????????????## #?# ## | | ?????????????????????# #?# ## # | | ?????????????????????# #?# ## # | | ???????????????????## ## ##?# # | | ???????????????????# ## ##### # | | ???????????????????# ### | | ???????????????????# ## | | ??????????????????# ### | | ????????????????# ### #?## | | ????????????????? #?# #??## | | ????????????????# ####?# #???## | | ??????????????????## ##?## ##????# | | ???????????????????## ##?## #?????# | | ????????????????????# ###??# #?????# | | ????????????????????## ##???? #?????# | | ?????????????????????# #????? ##?????# | | ?????????????????????# #?????? #?????## | | ????????????????????? ??????? ### ###### | | ????????????????????? ???????? ??# | | ??????????????????????????????? ???## | | ??????????????????????????????????????### ## | | ????????????????????????????????????????## ##? | +----------------------------------------------------+ Best States ------------- Heat Dissipation 25 Energy Generation 10 Energy Capacity 250 Matter Stores 300 Matter Capacity 300 Sight Range 16 Terrain Scan Density 10 Armor Coverage 100 Evasion (%) 40 Recoil Reduction 1 Item Schematics ----------------- None Robot Schematics ------------------ None Fabricated ------------ Nothing Alien Tech Used ----------------- None Achievements -------------- None Challenges ------------ None Game ------ Seed BurstSpreadArachnoskeleton Manual? 0 Play Time 00:23:07 Cumulative 21.5 hours Start 2024.03.06 @ 21:36:27 End 2024.03.06 @ 21:58:39 Sessions 1 Manual Loads 0 Difficulty Rogue Special Mode None Game No. 21 Rogue 21 Adventurer 0 Explorer 0 Win Type - Total 0 Types 0/0/0/0/0/0/0/0/0 Lore% 21 Gallery% 20 Achievement% 21 Wizard Run 0 Options --------- Layout 1 ASCII 0 Keyboard 0 Movement Numpad Keybinds 0 Fullscreen 2 Font 24/Smallcaps Map View 50x35 Zoom Use 0% Tactical HUD 1 Map Filters NONE Filters NONE Steam 0 RUN: 3a085c5b-0d2a-4ce2-816d-223ce434d0d7